{"text_format":"3","workbook":"xlsx","n_sheets":1,"sheets":["LiqGewBerechnung"],"not_rendered":{"defined_names":1,"comments":1},"read":"whole","date_system":"1900"}

{"sheet":"LiqGewBerechnung","index":0,"n_rows":61,"n_cols":15,"rows_kept":61,"merged":[[6,3,6,9],[7,3,7,9],[14,1,14,9],[18,1,18,9],[20,13,20,14],[21,13,21,14],[23,1,23,9],[26,1,26,9],[27,1,27,9],[31,1,31,10],[32,1,32,10],[33,1,33,10],[42,1,42,8],[43,1,43,7],[45,1,45,5],[47,1,47,8],[60,1,60,15]]}
[null,"Antrag auf separate Besteuerung des Liquidationsgewinnes"]
[null,"Liquidationsgewinnermittlung bei definitiver Aufgabe der selbständigen Erwerbstätigkeit (§ 37ter StG / Art. 37b DBG)"]
[]
[null,"Grundangaben"]
[]
[null,"Liquidationsjahr"]
[null,"Personen-Nr."]
[null,"Name/Vorname"]
[null,"Geburtsjahr"]
[]
[]
[]
[]
[null,"Ermittlung des Liquidationserfolges",{"$nulls":8},"Vorjahr","Liquidationsjahr"]
[null,"AHV-pflichtiges Erwerbseinkommen aus selbständiger Erwerbstätigkeit ohne Liquidationsgewinn"]
[null,"Abzüglich Verlustvortrag (Stufe 1)"]
[null,"Übriges Einkommen"]
[null,"Liquidationserfolg"]
[null,"Übertrag Liquidationserfolg des Vorjahres auf das Liquidationsjahr",{"$nulls":9},{"$f":"K18","v":0}]
[null,"Abzüglich Verlustvortrag (Stufe 2)"]
[null,"Total Liquidationserfolg",{"$nulls":9},{"$f":"L18+L19-L20","v":0},null,"INTERNER BERECHNUNGSBLOCK"]
[{"$nulls":13},"Prüfung, ob ein Beitragsüberhang vorliegt"]
[null,"Einkäufe in die berufliche Vorsorge",{"$nulls":11},"Vorjahr","Liquidationsjahr"]
[null,"AHV-pflichtiges Erwerbseinkommen aus selbständiger Erwerbstätigkeit ohne Liquidationsgewinn",{"$nulls":8},{"$f":"IF(N27=1,N24,0)","v":0},{"$f":"IF(O27,O24,0)","v":0},null,{"$f":"IF((K15+K17)>0,K15+K17,0)","v":0},{"$f":"IF((L15+L17)>0,L15+L17,0)","v":0}]
[null,"Einkäufe",{"$nulls":11},{"$f":"K25","v":0},{"$f":"L25","v":0}]
[null,"Beitragsüberhang",{"$nulls":8},{"$f":"N26","v":0},{"$f":"O26","v":0},null,{"$f":"IF((N24-N25)>=0,0,N24-N25)","v":0},{"$f":"IF((O24-O25)>=0,0,O24-O25)","v":0}]
[null,{"$f":"B19","v":"Übertrag Liquidationserfolg des Vorjahres auf das Liquidationsjahr"},{"$nulls":9},{"$f":"K26","v":0},null,{"$f":"IF(N26=0,0,1)","v":0},{"$f":"IF(O26=0,0,1)","v":0}]
[null,"Beitragsüberhang nach Verrechnung mit Einkommen aus selbständiger Erwerbstätigkeit und übriges Einkommen",{"$nulls":9},{"$f":"SUM(L26:L27)","v":0}]
[]
[null,"Total Liquidationserfolg vor Beitragsüberhang",{"$nulls":9},{"$f":"L21","v":0}]
[null,"Beitragsüberhang",{"$nulls":9},{"$f":"L28","v":0}]
[]
[]
[]
[null,"Liquidationserfolg",{"$nulls":9},{"$f":"(L30+L31)-(L32+L33+L34)","v":0}]
[""]
[null,"Berechnung fiktiver Einkauf"]
[null,"Erfolg der letzten fünf Jahre vor Liquidationsjahr"]
[null,{"$f":"IF(D6=0,\"\",D6-5)","v":""},{"$f":"IF(D6=0,\"\",D6-4)","v":""},{"$f":"IF(D6=0,\"\",D6-3)","v":""},{"$f":"IF(D6=0,\"\",D6-2)","v":""},{"$f":"IF(D6=0,\"\",D6-1)","v":""}]
[]
[null,{"$f":"IF(B40>0,B40,0)","v":0},{"$f":"IF(C40>0,C40,0)","v":0},{"$f":"IF(D40>0,D40,0)","v":0},{"$f":"IF(E40>0,E40,0)","v":0},{"$f":"IF(F40>0,F40,0)","v":0}]
[null,{"$f":"IF(B40<>\"\",1)","v":false},{"$f":"IF(C40<>\"\",1)","v":false},{"$f":"IF(D40<>\"\",1)","v":false},{"$f":"IF(E40<>\"\",1)","v":false},{"$f":"IF(F40<>\"\",1)","v":false},{"$f":"SUM(B42:F42)","v":0}]
[null,"Summe des AHV-pflichtigen Erwerbseinkommen aus selbständiger Erwerbstätigkeit der letzten 5 Jahre (vor Liquidationsjahr)",{"$nulls":7},{"$f":"SUM(B41:F41)","v":0}]
[null,"Abzüglich der realisierten stillen Reserven im Vorjahr",{"$nulls":7},{"$f":"K18","v":0}]
[null,"  Zwischentotal",{"$nulls":7},{"$f":"J43-J44","v":0}]
[null,"Berechnungsgrundlage für die fiktive Deckungslücke",{"$nulls":5},{"v":0.15,"d":"15%"},{"$f":"IF(D9=0,\"\",IF((D6-D9-25)>40,40,D6-D9-25))","v":""},{"$f":"IF(D6-D9>70,0,IF(D9=0,0,J45/G42))","v":0}]
[null,"Fiktive Altersgutschriften",{"$nulls":7},{"$f":"IF(D9=0,\"\",J46*H46*I46)","v":""}]
[]
[null,"Fiktiver Einkauf",{"$nulls":7},{"$f":"IF(D9=0,\"\",J47-J48)","v":""}]
[]
[null,"Aufteilung"]
[null,"Fiktiver Einkauf (Art. 8 LGBV)",{"$nulls":9},{"$f":"IF(J49<0,0,IF(L35<0,0,IF(J49>L35,L35,J49)))","v":0}]
[null,"Liquidationsgewinn (Art. 10 LGBV)",{"$nulls":9},{"$f":"IF(L35<0,0,IF(L52=0,L35,IF(L52>0,L35-L52,L35)))","v":0}]
[]
[]
[]
[]
[]
[null,"Ort, Datum",{"$nulls":7},"Unterschrift"]
[]
[null,"Diese Berechnung wurde mit grösstmöglicher Sorgfalt erstellt. Trotzdem sind alle Angaben ohne Gewähr."]